bitfinex/quotes_SOLUSD_20250416
["timestamp","ask_amount","ask_price","bid_price","bid_amount"]
[1744825824480,26.0,125.58,125.51,30.2]
[1744825824679,54.11095724,125.58,125.51,30.2]
[1744825824885,18.79181043,125.57,125.51,0.2]
[1744825825082,54.11095724,125.52,125.51,0.2]
[1744825825286,38.10216157,125.57,125.51,0.2]
[1744825825521,54.11095724,125.52,125.51,0.2]
[1744825825698,38.10216157,125.57,125.48,37.669143]
[1744825825699,58.10216157,125.57,125.48,37.669143]
[1744825825904,18.79181043,125.53,125.48,27.89263678]
[1744825826209,18.79181043,125.57,125.48,19.92349378]
[1744825826386,0.14216157,125.59,125.49,1.0]
[1744825826582,20.0,125.6,125.52,54.11095724]
[1744825826790,20.0,125.67,125.49,12.822]
[1744825826998,1.0,125.64,125.48,19.92349378]
[1744825827221,54.11095724,125.62,125.52,54.11095724]
[1744825827511,80.11095724,125.58,125.48,54.11095724]
[1744825827730,80.11095724,125.58,125.47,0.14216157]
[1744825828013,80.11095724,125.52,125.4,19.93576736]
[1744825828385,0.42648471,125.53,125.4,74.0467246]
[1744825828585,0.14216157,125.53,125.4,74.0467246]
[1744825828823,0.14216157,125.55,125.39,12.1655]
[1744825829036,18.79181043,125.58,125.53,54.11095724]
[1744825829204,12.8528,125.65,125.52,80.11095724]
[1744825829523,1.0,125.6,125.47,0.28432314]
[1744825829731,1.0,125.6,125.4,248.0]
[1744825829732,80.11095724,125.58,125.43,26.0]
[1744825829928,54.11095724,125.58,125.45,26.0]
[1744825830129,26.0,125.61,125.49,0.28432314]
[1744825830311,1.0,125.59,125.48,7.96939751]
[1744825830624,21.0,125.61,125.51,54.11095724]
[1744825830829,12.8528,125.65,125.5,0.42648471]
[1744825830999,54.11095724,125.53,125.48,27.89289129]
[1744825831200,0.14216157,125.62,125.48,7.96939751]
[1744825831427,54.11095724,125.54,125.48,7.96939751]
[1744825831626,18.79181043,125.56,125.43,7.97257434]
[1744825831800,54.11095724,125.52,125.43,7.97257434]
[1744825831997,26.0,125.49,125.4,7.97448165]
[1744825832234,0.14216157,125.51,125.43,54.11095724]
[1744825832412,0.14216157,125.52,125.41,27.90804425]
[1744825832760,0.14216157,125.52,125.44,54.11095724]
[1744825833030,0.14216157,125.52,125.41,27.90804425]
[1744825833031,13.0473,125.59,125.46,54.11095724]
[1744825833196,7.3743,125.62,125.52,54.11095724]
[1744825833397,20.0,125.64,125.45,1.0]
[1744825833623,54.11095724,125.64,125.5,18.933972]
[1744825833828,1.0,125.62,125.47,0.14216157]
[1744825834028,55.11095724,125.64,125.49,0.28432314]
[1744825834223,12.0802,125.65,125.54,18.64964886]
[1744825834425,54.11095724,125.57,125.53,7.96622321]
[1744825834727,12.0802,125.65,125.53,27.88178124]
[1744825835029,54.11095724,125.64,125.53,7.96622321]
[1744825835209,54.11095724,125.57,125.53,7.96622321]
[1744825835403,54.11095724,125.57,125.4,54.11095724]
[1744825835404,0.14216157,125.57,125.47,19.92418568]
[1744825835601,54.11095724,125.58,125.47,19.92418568]
[1744825835803,26.0,125.61,125.49,0.28432314]
[1744825836011,20.0,125.66,125.53,54.11095724]
[1744825836223,54.11095724,125.58,125.56,7.96431984]
[1744825836408,20.0,125.63,125.51,19.91798529]
[1744825836617,73.78692768,125.7,125.52,54.11095724]
[1744825836618,20.0,125.67,125.52,54.11095724]
[1744825836816,54.11095724,125.58,125.49,7.96876245]
[1744825837043,26.14216157,125.6,125.49,27.89066857]
[1744825837327,54.11095724,125.64,125.49,27.89066857]
[1744825837328,6.7767,125.69,125.53,19.07613357]
[1744825837530,6.7767,125.69,125.61,54.11095724]
[1744825837727,6.7767,125.69,125.52,54.11095724]
[1744825837728,6.7767,125.69,125.55,44.933972]
[1744825837925,26.7767,125.69,125.55,26.0]
[1744825838124,26.0,125.66,125.58,7.96305144]
[1744825838339,54.11095724,125.64,125.58,7.96305144]
[1744825838533,54.11095724,125.61,125.58,7.96305144]
[1744825838719,18.79181043,125.68,125.58,7.96305144]
[1744825838924,26.7767,125.69,125.58,27.87068004]
[1744825839131,27.7767,125.69,125.58,7.96305144]
[1744825839323,54.11095724,125.59,125.54,7.96558865]
[1744825839519,0.14216157,125.63,125.54,27.87956029]
[1744825839720,26.14216157,125.63,125.54,7.96558865]
[1744825839926,54.11095724,125.59,125.54,7.96558865]
[1744825840144,54.11095724,125.55,125.44,12.8955]
[1744825840342,54.11095724,125.52,125.45,57.89956157]
[1744825840526,54.11095724,125.46,125.45,7.9713033]
[1744825840726,26.0,125.52,125.43,7.97257434]
[1744825840934,18.79181043,125.51,125.43,7.97257434]
[1744825841132,54.11095724,125.52,125.43,27.9040102]
[1744825841351,0.14216157,125.53,125.43,27.9040102]
[1744825841524,38.64964886,125.56,125.43,27.9040102]
[1744825841722,6.6825,125.57,125.43,27.9040102]
[1744825841936,38.4811,125.6,125.47,26.0]
[1744825842142,0.14216157,125.57,125.5,7.96812749]
[1744825842371,54.11095724,125.51,125.44,7.97193877]
[1744825842542,18.64964886,125.51,125.44,7.97193877]
[1744825842855,54.25311881,125.52,125.44,7.97193877]
[1744825843024,26.0,125.55,125.44,27.9017857]
[1744825843224,0.14216157,125.54,125.46,54.11095724]
[1744825843425,12.4811,125.6,125.51,54.11095724]
[1744825843655,20.0,125.63,125.47,26.0]
[1744825843832,20.0,125.63,125.49,26.0]
[1744825844027,54.11095724,125.6,125.55,54.11095724]
[1744825844236,7.3087,125.65,125.59,54.11095724]
[1744825844439,54.11095724,125.6,125.53,7.96622321]
[1744825844640,32.4959,125.66,125.57,54.11095724]
[1744825844842,54.11095724,125.64,125.53,27.88178124]
[1744825845046,54.11095724,125.59,125.53,27.88178124]
[1744825845248,54.11095724,125.54,125.45,7.9713033]
[1744825845448,54.11095724,125.52,125.47,74.03506849]
[1744825845759,54.11095724,125.58,125.47,19.92411125]
[1744825845962,20.0,125.63,125.51,54.11095724]
[1744825846253,54.11095724,125.61,125.57,7.96368559]
[1744825846457,12.4959,125.66,125.6,54.11095724]
[1744825846638,13.2811,125.74,125.65,54.11095724]
[1744825846828,54.11095724,125.76,125.68,54.11095724]
[1744825847035,7.2325,125.77,125.69,54.11095724]
[1744825847244,54.11095724,125.7,125.6,26.28432314]
[1744825847435,26.0,125.72,125.57,67.69132753]
[1744825847789,54.11095724,125.68,125.6,26.0]
[1744825847948,54.11095724,125.7,125.6,26.0]
[1744825848152,27.2325,125.77,125.65,27.8551532]
[1744825848348,74.11095724,125.82,125.72,54.11095724]
[1744825848665,54.11095724,125.73,125.65,27.8551532]
[1744825848871,54.11095724,125.66,125.58,26.0]
[1744825849157,18.79181043,125.69,125.6,54.11095724]
[1744825849447,54.11095724,125.66,125.61,54.11095724]
[1744825849647,20.14216157,125.72,125.61,54.11095724]
[1744825849648,74.11095724,125.76,125.65,54.11095724]
[1744825849855,54.11095724,125.66,125.59,19.90530267]
[1744825850057,0.14216157,125.68,125.59,19.90530267]
[1744825850230,54.11095724,125.65,125.6,54.11095724]
[1744825850665,0.14216157,125.68,125.59,19.90530267]
[1744825850847,80.11095724,125.7,125.61,54.11095724]
[1744825851047,54.11095724,125.64,125.59,19.90530267]
[1744825851235,54.11095724,125.61,125.58,7.96305144]
[1744825851550,54.11095724,125.64,125.54,54.11095724]
[1744825851752,54.11095724,125.63,125.58,54.11095724]
[1744825851943,0.14216157,125.65,125.59,54.11095724]
[1744825852275,54.11095724,125.6,125.53,27.88119102]
[1744825852438,54.11095724,125.57,125.53,27.88119102]
[1744825852845,54.11095724,125.56,125.53,7.96622321]
[1744825853034,26.14216157,125.61,125.53,7.96622321]
[1744825853230,0.14216157,125.61,125.53,27.88178124]
[1744825853447,54.11095724,125.64,125.55,54.11095724]
[1744825853638,44.79181043,125.65,125.53,27.88178124]
[1744825853833,54.11095724,125.55,125.53,7.96622321]
[1744825854041,54.11095724,125.54,125.51,7.96749263]
[1744825854243,0.14216157,125.55,125.48,0.03]
[1744825854443,26.0,125.59,125.51,54.11095724]
[1744825854639,54.11095724,125.55,125.48,0.03]
[1744825854853,54.11095724,125.54,125.49,54.11095724]
[1744825855160,0.14216157,125.56,125.49,54.11095724]
[1744825855462,18.79181043,125.56,125.48,0.03]
[1744825855862,0.14216157,125.53,125.48,0.03]
[1744825856036,0.14216157,125.57,125.49,54.11095724]
[1744825856239,54.11095724,125.64,125.55,7.9649542]
[1744825856438,54.11095724,125.56,125.51,54.11095724]
[1744825856651,18.64964886,125.61,125.53,54.11095724]
[1744825856844,20.0,125.63,125.51,19.9176342]
[1744825857142,54.11095724,125.59,125.54,54.11095724]
[1744825857344,54.11095724,125.64,125.56,54.11095724]
[1744825857644,54.11095724,125.57,125.52,54.11095724]
[1744825857843,26.0,125.61,125.5,7.96812749]
[1744825857844,54.11095724,125.55,125.5,7.96812749]
[1744825858041,54.11095724,125.54,125.5,7.96812749]
[1744825858238,54.11095724,125.54,125.48,19.95239675]
[1744825858239,54.11095724,125.51,125.48,0.03]
[1744825858444,54.11095724,125.52,125.48,0.03]
[1744825858647,54.11095724,125.51,125.48,0.03]
[1744825858848,20.0,125.57,125.48,0.03]
[1744825858849,54.11095724,125.58,125.48,54.14095724]
[1744825859039,44.64964886,125.6,125.52,54.11095724]
[1744825859244,54.25311881,125.64,125.49,26.0]
[1744825859448,46.61892877,125.67,125.55,54.11095724]
[1744825859660,54.11095724,125.64,125.56,54.11095724]
[1744825859862,6.7246,125.67,125.56,26.0]
[1744825860166,6.89265622,125.72,125.58,54.11095724]
[1744825860341,0.063,125.73,125.66,54.11095724]
[1744825860661,0.063,125.73,125.63,26.0]
[1744825861048,0.063,125.73,125.6,58.45803533]
[1744825861049,54.11095724,125.69,125.61,0.14216157]
[1744825861244,54.11095724,125.62,125.59,7.96241738]
[1744825861459,54.11095724,125.6,125.52,54.11095724]
[1744825861675,26.0,125.66,125.58,54.11095724]
[1744825861970,19.233,125.69,125.59,54.11095724]
[1744825861971,18.79181043,125.68,125.59,54.11095724]
[1744825862179,54.11095724,125.64,125.56,54.11095724]
[1744825862348,54.11095724,125.61,125.57,7.96368559]
[1744825862552,26.0,125.66,125.58,54.11095724]
[1744825862782,26.0,125.66,125.57,27.87289957]
[1744825863070,54.11095724,125.6,125.57,7.96368559]
[1744825863369,18.79181043,125.65,125.57,54.11095724]
[1744825863681,26.0,125.66,125.55,27.8773397]
[1744825863682,54.11095724,125.64,125.55,27.8773397]
[1744825863855,54.11095724,125.59,125.55,27.8773397]
[1744825864052,54.11095724,125.58,125.55,7.9649542]
[1744825864363,54.11095724,125.57,125.53,7.96622321]
[1744825864555,0.14216157,125.61,125.53,7.96622321]
[1744825864750,0.14216157,125.62,125.54,54.11095724]
[1744825864958,20.18014772,125.66,125.57,54.11095724]
[1744825864959,0.14216157,125.66,125.57,54.11095724]
[1744825865159,54.11095724,125.62,125.57,54.11095724]
[1744825865360,54.11095724,125.61,125.53,53.88178124]
[1744825865683,54.11095724,125.54,125.51,7.96749263]
[1744825865855,54.11095724,125.52,125.49,7.96876245]
[1744825866052,26.14216157,125.57,125.49,7.99876245]
[1744825866250,20.0,125.66,125.51,33.96749263]
[1744825866472,18.64964886,125.62,125.51,27.8862242]
[1744825866655,54.11095724,125.57,125.51,27.8862242]
[1744825866853,54.11095724,125.53,125.51,7.96749263]
[1744825867076,54.11095724,125.53,125.49,0.03]
[1744825867273,54.11095724,125.5,125.49,0.03]
[1744825867484,0.14216157,125.54,125.49,7.99874899]
[1744825867658,54.11095724,125.53,125.49,7.99874899]
[1744825868057,54.11095724,125.55,125.49,7.99874899]
[1744825868262,54.11095724,125.51,125.49,0.03]
[1744825868574,0.14216157,125.53,125.49,0.03]
[1744825868776,26.0,125.56,125.45,67.75607811]
[1744825869076,54.11095724,125.51,125.46,54.11095724]
[1744825869375,54.11095724,125.51,125.45,27.89956157]
[1744825869581,54.11095724,125.53,125.48,54.11095724]
[1744825869883,26.0,125.56,125.45,67.75607811]
[1744825870056,26.0,125.56,125.49,54.11095724]
[1744825870057,54.11095724,125.54,125.49,54.11095724]
[1744825870375,54.11095724,125.5,125.45,27.89956157]
[1744825870557,54.11095724,125.47,125.45,7.9713033]
[1744825870765,0.14216157,125.5,125.45,7.9713033]
[1744825871064,0.14216157,125.5,125.41,27.90846024]
[1744825871273,33.96636691,125.53,125.45,54.11095724]
[1744825871480,33.96636691,125.53,125.41,27.90846024]
[1744825871481,26.0,125.53,125.46,54.11095724]
[1744825871658,18.79181043,125.52,125.41,27.90846024]
[1744825871856,20.0,125.56,125.42,26.28432314]
[1744825872060,20.0,125.56,125.47,54.11095724]
[1744825872061,0.14216157,125.55,125.47,54.11095724]
[1744825872289,20.24136085,125.57,125.44,0.28432314]
[1744825872468,12.05239109,125.6,125.52,54.11095724]
[1744825872675,12.05239109,125.6,125.57,54.11095724]
[1744825872860,67.18076439,125.63,125.57,54.11095724]
[1744825873057,48.20956439,125.63,125.61,54.11095724]
[1744825873379,48.20956439,125.63,125.62,54.11095724]
[1744825874486,0.063,125.71,125.65,26.0]
[1744825874693,54.11095724,125.82,125.72,26.0]
[1744825874694,1e-08,125.73,125.72,26.0]
[1744825874871,20.0,125.9,125.75,27.0]
[1744825875202,83.8,126.02,125.72,410.81287172]
[1744825875203,20.0,125.96,125.89,54.11095724]
[1744825875494,0.063,126.03,125.98,26.0]
[1744825875863,54.11095724,125.99,125.85,39.13334292]
[1744825876083,54.11095724,126.0,125.9,19.07613357]
[1744825876286,7.99789788,126.03,125.91,8.0841255]
[1744825876464,54.11095724,125.98,125.9,0.28432314]
[1744825876662,7.3227,125.97,125.83,51.85741402]
[1744825876862,54.11095724,125.84,125.83,12.36998993]
[1744825877173,54.11095724,125.88,125.76,39.75821176]
[1744825877378,54.11095724,125.82,125.76,30.0]
[1744825877572,54.11095724,125.82,125.62,57.7874735]
[1744825877573,108.22191448,125.77,125.64,7.95924864]
[1744825877818,1.0,125.8,125.64,62.07020588]
[1744825877963,12.1909,125.81,125.79,12.22009683]
[1744825878176,0.42648471,125.78,125.59,7.96241738]
[1744825878368,0.14216157,125.75,125.67,54.11095724]
[1744825878566,54.11095724,125.75,125.64,54.11095724]
[1744825878785,0.28432314,125.79,125.68,54.11095724]
[1744825879085,54.11095724,125.72,125.63,7.95988219]
[1744825879393,0.14216157,125.79,125.65,30.0]
[1744825879570,54.11095724,125.7,125.65,30.0]
[1744825879904,20.0,125.77,125.58,54.11095724]
[1744825880060,26.0,125.74,125.65,54.11095724]
[1744825880266,54.11095724,125.66,125.52,54.11095724]
[1744825880466,54.11095724,125.7,125.52,54.11095724]
[1744825880467,54.11095724,125.64,125.52,54.11095724]
[1744825880662,54.11095724,125.64,125.51,56.17645928]
[1744825880663,54.11095724,125.6,125.51,48.20956439]
[1744825880982,54.11095724,125.64,125.54,54.11095724]
[1744825880983,54.11095724,125.59,125.54,54.11095724]
[1744825881286,19.07613357,125.63,125.51,48.20956439]
[1744825881484,54.11095724,125.56,125.51,48.20956439]
[1744825881677,54.11095724,125.52,125.49,0.03]
[1744825881885,18.79181043,125.57,125.49,0.03]
[1744825882097,26.0,125.57,125.49,0.03]
[1744825882273,54.11095724,125.5,125.49,0.03]
[1744825882587,54.11095724,125.5,125.37,2.94392]
[1744825882588,108.36407605,125.5,125.37,2.94392]
[1744825882891,20.0,125.54,125.43,54.11095724]
[1744825883063,33.96368559,125.57,125.48,54.11095724]
[1744825883266,88.07404445,125.58,125.49,54.11095724]
[1744825883564,74.11095724,125.64,125.51,26.0]
[1744825883793,54.11095724,125.55,125.47,0.28432314]
[1744825884096,8.81817651,125.55,125.43,18.933972]
[1744825884400,54.11095724,125.52,125.39,1.0]
[1744825884589,54.11095724,125.51,125.45,54.11095724]
[1744825884765,8.81817651,125.55,125.41,18.64964886]
[1744825884964,8.81817651,125.55,125.47,54.11095724]
[1744825885173,8.81817651,125.55,125.53,54.11095724]
[1744825885361,8.81817651,125.55,125.54,72.90276767]
[1744825885565,8.81817651,125.55,125.5,26.0]
[1744825886085,8.81817651,125.55,125.54,54.11095724]
[1744825886395,8.81817651,125.55,125.54,73.04492924]
[1744825886605,54.11095724,125.67,125.58,44.64964886]
[1744825886895,54.11095724,125.64,125.59,54.11095724]
[1744825887094,282.29608331,125.69,125.59,54.11095724]
[1744825887095,248.34,125.69,125.63,54.11095724]
[1744825887403,12.9819,125.74,125.65,54.11095724]
[1744825887582,248.34,125.78,125.66,0.14216157]
[1744825887780,54.11095724,125.76,125.64,54.11095724]
[1744825887992,54.11095724,125.7,125.63,0.28432314]
[1744825888191,54.11095724,125.69,125.61,26.0]
[1744825888377,54.11095724,125.69,125.64,54.11095724]
[1744825888587,7.95507096,125.71,125.64,54.11095724]
[1744825888898,80.11095724,125.68,125.53,19.9151098]
[1744825889089,54.11095724,125.7,125.55,19.07613357]
[1744825889272,54.11095724,125.66,125.61,54.11095724]
[1744825889589,7.95228628,125.75,125.65,54.11095724]
[1744825889778,7.95228628,125.75,125.64,54.25311881]
[1744825889975,7.95143894,125.77,125.7,54.11095724]
[1744825890181,54.11095724,125.75,125.7,54.11095724]
[1744825890492,248.34,125.78,125.73,54.11095724]
[1744825890788,248.34,125.78,125.7,54.11095724]
[1744825890789,7.94849376,125.81,125.74,54.11095724]
[1744825891202,54.11095724,125.8,125.71,0.28432314]
[1744825891503,0.063,125.82,125.76,54.11095724]
[1744825891671,54.17395724,125.82,125.74,26.0]
[1744825891869,54.11095724,125.75,125.67,7.95684533]
[1744825892078,54.11095724,125.74,125.65,7.95799132]
[1744825892393,54.11095724,125.72,125.65,26.0]
[1744825892695,62.06324352,125.75,125.66,18.64964886]
[1744825892875,54.11095724,125.71,125.66,54.11095724]
[1744825893076,27.83300198,125.75,125.64,54.11095724]
[1744825893282,27.83300198,125.75,125.67,54.11095724]
[1744825893480,7.95038956,125.78,125.71,54.11095724]
[1744825893684,54.11095724,125.77,125.72,54.11095724]
[1744825893886,54.11095724,125.73,125.66,0.28432314]
[1744825894075,54.11095724,125.75,125.7,54.11095724]
[1744825894493,7.95038956,125.78,125.71,54.11095724]
[1744825894681,7.95038956,125.78,125.68,18.64964886]
[1744825894682,7.94849376,125.81,125.73,54.11095724]
[1744825894878,7.94849376,125.81,125.68,44.64964886]
[1744825894879,7.94849376,125.81,125.68,0.28432314]
[1744825895077,7.94849376,125.81,125.7,54.11095724]
[1744825895277,54.11095724,125.8,125.75,54.11095724]
[1744825895479,0.063,125.82,125.77,54.11095724]
[1744825895708,54.11095724,125.78,125.68,0.14216157]
[1744825895880,62.12198873,125.82,125.7,26.0]
[1744825896193,54.11095724,125.78,125.73,54.11095724]
[1744825896378,54.11095724,125.77,125.73,54.11095724]
[1744825896574,0.063,125.82,125.76,54.11095724]
[1744825896779,54.11095724,125.77,125.72,54.11095724]
[1744825897280,8.01110992,125.82,125.75,54.11095724]
[1744825897596,54.11095724,125.8,125.75,54.11095724]
[1744825897782,8.01110992,125.82,125.74,54.11095724]
[1744825897984,0.063,125.82,125.75,54.11095724]
[1744825898184,54.11095724,125.8,125.75,54.11095724]
[1744825898696,0.063,125.82,125.77,54.11095724]
[1744825898909,54.11095724,125.78,125.71,7.95481664]
[1744825899078,54.11095724,125.74,125.67,26.0]
[1744825899278,54.11095724,125.75,125.7,54.11095724]
[1744825899696,62.12230588,125.82,125.74,54.11095724]
[1744825899901,54.17395724,125.82,125.77,54.11095724]
[1744825900095,54.17395724,125.82,125.73,18.933972]
[1744825900274,54.11095724,125.8,125.76,54.11095724]
[1744825900481,54.17395724,125.82,125.73,18.933972]
[1744825900684,0.063,125.82,125.78,54.11095724]
[1744825900906,54.17395724,125.82,125.77,54.11095724]
[1744825901086,0.063,125.82,125.78,54.11095724]
[1744825901285,54.17395724,125.82,125.75,0.28432314]
[1744825901507,0.063,125.82,125.75,18.933972]
[1744825901709,0.063,125.82,125.79,54.11095724]
[1744825901912,0.063,125.82,125.8,54.11095724]
[1744825902114,0.063,125.82,125.76,0.28432314]
[1744825902289,54.17395724,125.82,125.78,54.11095724]
[1744825902490,0.063,125.82,125.78,54.11095724]
[1744825902683,0.063,125.82,125.8,54.11095724]
[1744825902886,0.063,125.82,125.79,54.11095724]
[1744825903586,0.063,125.82,125.81,54.11095724]
[1744825903897,0.063,125.82,125.81,127.15588648]
[1744825904096,0.063,125.82,125.77,18.64964886]
[1744825904305,0.063,125.82,125.8,54.11095724]
[1744825904812,0.063,125.82,125.81,54.11095724]
[1744825905312,0.063,125.82,125.79,0.14216157]
[1744825905484,0.063,125.82,125.76,54.11095724]
[1744825905808,54.11095724,125.81,125.72,19.88400266]
[1744825905993,54.11095724,125.79,125.74,54.11095724]
[1744825906187,54.17395724,125.82,125.71,7.95481664]
[1744825906188,0.063,125.82,125.76,54.11095724]
[1744825906409,0.063,125.82,125.72,26.0]
[1744825906703,54.11095724,125.75,125.68,19.89033763]
[1744825906923,54.11095724,125.73,125.69,54.11095724]
[1744825907111,54.11095724,125.74,125.67,7.95734861]
[1744825907414,54.11095724,125.74,125.69,54.11095724]
[1744825907616,26.0,125.79,125.71,54.11095724]
[1744825907836,54.11095724,125.74,125.67,27.85072013]
[1744825907982,54.11095724,125.71,125.61,7.96114959]
[1744825908185,54.11095724,125.7,125.65,54.11095724]
[1744825908392,54.11095724,125.73,125.65,0.28432314]
[1744825908593,33.9507654,125.78,125.71,54.11095724]
[1744825908810,54.11095724,125.77,125.7,7.95544948]
[1744825909018,54.11095724,125.76,125.71,54.11095724]
[1744825909199,27.82193958,125.8,125.72,54.11095724]
[1744825909200,54.11095724,125.77,125.72,54.11095724]
[1744825909915,26.0,125.81,125.74,54.11095724]
[1744825910215,7.94849376,125.81,125.74,54.11095724]
[1744825910518,0.063,125.82,125.75,54.11095724]
[1744825910689,0.063,125.82,125.77,54.11095724]
[1744825910891,54.11095724,125.81,125.77,54.11095724]
[1744825911199,54.17395724,125.82,125.77,62.06168452]
[1744825911412,54.17395724,125.82,125.78,54.11095724]
[1744825911587,0.063,125.82,125.78,54.11095724]
[1744825911786,0.063,125.82,125.77,7.95072728]
[1744825911787,0.063,125.82,125.81,54.11095724]
[1744825912394,0.063,125.82,125.79,0.28432314]
[1744825912597,54.17395724,125.82,125.75,7.95228628]
[1744825912890,54.11095724,125.79,125.71,53.84185824]
[1744825913091,0.063,125.82,125.78,54.11095724]
[1744825913433,0.063,125.82,125.8,54.11095724]
[1744825913595,0.063,125.82,125.81,54.11095724]
[1744825915004,0.063,125.82,125.8,54.11095724]
[1744825915340,54.11095724,125.81,125.76,54.11095724]
[1744825915625,0.063,125.82,125.73,18.64964886]
[1744825915626,0.063,125.82,125.78,54.11095724]
[1744825915823,0.063,125.82,125.81,54.11095724]
[1744825916624,0.063,125.82,125.81,127.15588648]
[1744825916807,1e-08,125.82,125.81,161.24654181]
[1744825917011,0.063,125.89,125.82,0.28432314]
[1744825917210,0.063,125.89,125.88,54.11095724]
[1744825917532,0.063,125.89,125.82,0.28432314]
[1744825917728,0.063,125.89,125.81,7.94849376]
[1744825917939,0.063,125.89,125.75,39.76143141]
[1744825917940,54.11095724,125.82,125.77,54.11095724]
[1744825918228,26.063,125.89,125.81,54.11095724]
[1744825918229,0.063,125.89,125.81,54.11095724]
[1744825918400,0.063,125.89,125.83,54.11095724]
[1744825918602,0.063,125.89,125.85,54.11095724]
[1744825918808,0.063,125.89,125.83,7.94723039]
[1744825918809,8.00644268,125.89,125.83,7.94723039]
[1744825919013,0.063,125.89,125.85,54.11095724]
[1744825919223,54.17395724,125.89,125.84,54.11095724]
[1744825919407,0.063,125.87,125.83,54.11095724]
[1744825919714,54.17395724,125.87,125.82,54.11095724]
[1744825919911,0.063,125.87,125.83,54.11095724]
[1744825920111,54.11095724,125.86,125.81,54.11095724]
[1744825920444,0.063,125.87,125.72,7.9541839]
[1744825920445,108.22191448,125.82,125.72,7.9541839]
[1744825920745,26.0,125.84,125.76,54.11095724]
[1744825920904,7.94723039,125.83,125.78,54.11095724]
[1744825921107,62.05629332,125.86,125.81,54.11095724]
[1744825921433,0.063,125.87,125.85,54.11095724]
[1744825921731,0.063,125.87,125.84,54.11095724]
[1744825922028,0.063,125.87,125.85,54.11095724]
[1744825922233,26.0,125.83,125.7,54.11095724]
[1744825922528,54.11095724,125.78,125.73,54.11095724]
[1744825923049,54.11095724,125.77,125.72,54.11095724]
[1744825923213,7.94935523,125.8,125.74,54.11095724]
[1744825923404,7.94935523,125.8,125.67,7.95734861]
[1744825923405,26.0,125.78,125.67,7.95734861]
[1744825923608,15.51880958,125.81,125.75,54.11095724]
[1744825923834,15.51880958,125.81,125.7,54.11095724]
[1744825923835,54.11095724,125.82,125.77,54.11095724]
[1744825924029,247.9,125.84,125.76,54.11095724]
[1744825924331,255.84673413,125.84,125.77,0.14216157]
[1744825924524,54.11095724,125.78,125.67,27.85072013]
[1744825924733,247.9,125.84,125.77,54.11095724]
[1744825924909,0.063,125.87,125.79,0.28432314]
[1744825925107,54.17395724,125.87,125.77,7.9510217]
[1744825925308,54.11095724,125.84,125.77,7.9510217]
[1744825925523,54.11095724,125.83,125.78,54.11095724]
[1744825925716,54.11095724,125.8,125.7,54.11095724]
[1744825925902,26.0,125.83,125.71,7.95481664]
[1744825926102,54.11095724,125.81,125.76,54.11095724]
[1744825926605,54.11095724,125.79,125.71,27.84185824]
[1744825926807,7.94786202,125.82,125.76,54.11095724]
[1744825927020,54.11095724,125.8,125.75,54.11095724]
[1744825927229,54.11095724,125.81,125.76,54.11095724]
[1744825927442,54.11095724,125.82,125.77,54.11095724]
[1744825927602,8.00790522,125.87,125.81,54.11095724]
[1744825927808,54.11095724,125.82,125.76,54.11095724]
[1744825928111,8.00790522,125.87,125.76,54.39528038]
[1744825928418,27.86976646,125.87,125.78,54.11095724]
[1744825928723,0.063,125.87,125.83,54.11095724]
[1744825928932,0.063,125.87,125.86,54.11095724]
[1744825929120,0.063,125.87,125.86,54.39528038]
[1744825929524,0.063,125.87,125.77,47.70509881]
[1744825929830,54.11095724,125.83,125.78,54.11095724]
[1744825930004,0.063,125.87,125.78,54.11095724]
[1744825930211,54.11095724,125.85,125.81,54.11095724]
[1744825930512,0.063,125.87,125.81,54.11095724]
[1744825930513,54.11095724,125.86,125.81,54.11095724]
[1744825930709,0.063,125.87,125.83,54.11095724]
[1744825930912,0.063,125.87,125.86,54.11095724]
[1744825931112,0.063,125.87,125.82,73.97992855]
[1744825931113,0.063,125.87,125.82,54.11095724]
[1744825931307,54.17395724,125.87,125.79,8.23408067]
[1744825931527,0.063,125.87,125.84,54.11095724]
[1744825931727,0.063,125.87,125.85,54.11095724]
[1744825932033,0.063,125.87,125.82,54.11095724]
[1744825932210,54.17395724,125.87,125.82,54.11095724]
[1744825932620,54.17395724,125.87,125.83,54.11095724]
[1744825932929,0.063,125.87,125.86,62.05629332]
[1744825933514,0.063,125.87,125.86,80.99026532]
[1744825933714,0.063,125.89,125.87,18.933972]
[1744825933906,0.063,125.91,125.88,127.15588648]
[1744825934207,0.063,125.94,125.9,54.11095724]
[1744825934415,54.17395724,125.94,125.89,54.11095724]